Cogmind - Beta 15 @@@ ROGUE MODE // 2025.08.12 @ 20:04:31 Player: ilja Result: Destroyed by 7A-100(R) with Subdweller Laser Performance ------------- Evolutions (0) 0 Regions Visited (3) 600 Robots Destroyed (5) 25 Value Destroyed (80) 80 Prototype IDs (0) 0 Alien Tech Used (0) 0 Bonus (0) 0 TOTAL SCORE: 705 Bonus ------- None Cogmind --------- Core Integrity 0/250 Matter 169/300 Energy 99/100 System Corruption 0% Temperature Cool (15) Movement Core (50) Location -10/Subcaves Parts ------- > --- POWER (1) -------- (None) > --- PROPULSION (2) --- (None) > --- UTILITY (2) ------ (None) > --- WEAPON (2) ------- (None) > --- INVENTORY (5) ---- Ion Engine Light Ion Engine Compact Wheel Seismic Detector EM Pulse Gun Peak State ------------ > --- POWER ------------ Light Ion Engine > --- PROPULSION ------- Compact Wheel Subdweller Monowheel > --- UTILITY ---------- Small Storage Unit Seismic Detector > --- WEAPON ----------- Battle Cannon Mining Laser > --- INVENTORY -------- Ion Engine Light Ion Engine Compact Wheel Compact Wheel EM Pulse Gun Assault Rifle Light Assault Rifle [Rating: 9] Favorites ----------- Power Light Ion Engine Engine Light Ion Engine Propulsion Light Treads Treads Light Treads Wheel Compact Wheel Utility Small Storage Unit Device Seismic Detector Storage Small Storage Unit Weapon Assault Rifle Ballistic Gun Assault Rifle Ballistic Cannon Battle Cannon Special Weapon Mining Laser Build | -11 -10 -10 -10 ------- Run | Yrd Mat Min Sub Slots Evolved . | . . . . Power . | . . . . Propulsion . | . . . . Utility . | . . . . Weapon . | . . . . Parts Attached 14 | 8 . 1 5 Power 3 | 2 . 1 . Engine 3 | 2 . 1 . Core . | . . . . Reactor . | . . . . Propulsion 4 | 2 . . 2 Treads 2 | 2 . . . Leg . | . . . . Wheel 2 | . . . 2 Hover . | . . . . Flight . | . . . . Utility 2 | 2 . . . Device 1 | 1 . . . Storage 1 | 1 . . . Processor . | . . . . Hackware . | . . . . Protection . | . . . . Artifact . | . . . . Weapon 5 | 2 . . 3 Energy Gun . | . . . . Energy Cannon . | . . . . Ballistic Gun 3 | 2 . . 1 Ballistic Cannon 1 | . . . 1 Launcher . | . . . . Special Weapon 1 | . . . 1 Impact Weapon . | . . . . Slashing Weapon . | . . . . Piercing Weapon . | . . . . Special Melee Weapon . | . . . . Unidentified Prototypes . | . . . . Parts Lost 4 | . . . 4 Power . | . . . . Propulsion . | . . . . Utility . | . . . . Weapon 4 | . . . 4 Highest Loss Streak 4 | . . . 4 To Critical Strikes . | . . . . Average Backups 7 | 4 7 8 7 Power 1 | . 2 2 2 Propulsion 2 | 2 3 3 2 Utility . | . . . . Weapon 2 | . 1 3 2 Tool/Special . | . . . . Unused Backups 4 | . 1 . 3 Power . | . . . . Propulsion 3 | . 1 . 2 Utility . | . . . . Weapon 1 | . . . 1 Tool/Special . | . . . . Average Slot Usage (%) 98 | . 100 100 97 Engine 13 | . 14 14 13 Treads 24 | . 28 28 22 Wheel 3 | . . . 5 Device 13 | . 14 14 13 Storage 13 | . 14 14 13 Ballistic Gun 15 | . 28 28 6 Ballistic Cannon 7 | . . . 12 Special Weapon 5 | . . . 8 Peak Build Rating 9 | 8 8 7 9 Average Rating 7 | 5 7 7 7 On Entrance 5 | . 8 7 7 Naked Turns 5 | . . . 5 Heaviest Build 14 | 13 12 12 14 Greatest Support 40 | 40 40 40 40 Greatest Overweight (x) 1 | . . . 1 Average Overweight (x) . | . . . . Largest Inventory Capacity 8 | 8 8 8 8 Average Capacity 7 | 7 8 8 7 Most Carried 8 | 8 8 8 8 Average Carried 7 | 4 7 8 7 Final Capacity 8 | 8 8 8 5 Final Carried 8 | 8 8 8 5 Class Distribution -------------------- 100% | Mutant Dominant Class ---------------- Mutant | -10/Materials Mutant | -10/Mines Mutant | -10/Subcaves Resources | -11 -10 -10 -10 ----------- Run | Yrd Mat Min Sub Matter Collected 335 | 295 40 . . Remotely . | . . . . Salvage Created 180 | 106 74 . . Parts 13 | 6 7 . . Haulers Intercepted . | . . . . Recyclers Shooed . | . . . . Parts Field Recycled . | . . . . Retrieved Matter . | . . . . Parts Self-Destructed 6 | . . . 6 Prevented . | . . . . Kills | -11 -10 -10 -10 ------- Run | Yrd Mat Min Sub Combat Hostiles Destroyed 3 | . 3 . . Guns 3 | . 3 . . Classes Destroyed 4 | 2 2 . . Tunneler 1 | 1 . . . Recycler 1 | 1 . . . Swarmer 2 | . 2 . . Grunt 1 | . 1 . . Best Kill Streak 3 | 1 3 . . Combat Bots Only 3 | . 3 . . Max Kills in Single Turn 1 | 1 1 . . Gunslinging . | . . . . Exploded . | . . . . Melee . | . . . . Uniques/NPCs Destroyed . | . . . . Combat | -11 -10 -10 -10 -------- Run | Yrd Mat Min Sub Hostile Shots Fired 63 | . 25 . 38 Missed 19 | . 7 . 12 Hits 44 | . 18 . 26 Projectile 44 | . 18 . 26 Critical Strikes 1 | . 1 . . Damage Taken 922 | . 222 . 700 Core 269 | . 13 . 256 Absorbed by Shields . | . . . . Core Remaining (%) 100 | 100 . . . Volleys Fired 30 | 6 10 . 14 Largest 2 | 2 2 . 2 Hottest 133 | 40 40 . 133 Shots Fired 50 | 9 20 . 21 Gun 36 | 9 20 . 7 Cannon 10 | . . . 10 Launcher . | . . . . Special 4 | . . . 4 Kinetic 46 | 9 20 . 17 Thermal 4 | . . . 4 Explosive . | . . . . Electromagnetic . | . . . . Robot Hit Streak 6 | 4 6 . 4 Robot Miss Streak 3 | 2 3 . 2 Penetration Max . | . . . . Secondary Targets . | . . . . Shots Hit Robots 29 | 6 13 . 10 Core Hits 10 | 4 6 . . Critical Kills . | . . . . Critical Parts Destroyed . | . . . . Critical Strikes . | . . . . Melee Attacks . | . . . . Impact . | . . . . Slashing . | . . . . Piercing . | . . . . Sneak Attacks . | . . . . Combat Hostiles . | . . . . Follow-up Attacks . | . . . . Damage Inflicted 334 | 53 139 . 142 Guns 233 | 53 139 . 41 Cannons 101 | . . . 101 Explosions . | . . . . Melee . | . . . . Ramming . | . . . . Kinetic 334 | 53 139 . 142 Thermal . | . . . . Explosive . | . . . . Electromagnetic . | . . . . Impact . | . . . . Slashing . | . . . . Piercing . | . . . . Highest Corruption . | . . . . Average Corruption . | . . . . Corruption Purged . | . . . . Corruption Blocked . | . . . . Overload Shots . | . . . . Overflow Damage . | . . . . Projectiles . | . . . . Explosions . | . . . . Melee . | . . . . Knockbacks 2 | . . . 2 Impact . | . . . . Kinetic 2 | . . . 2 Secondary . | . . . . Self-Inflicted Damage . | . . . . Shots . | . . . . Rammed . | . . . . Targets Rammed . | . . . . Kicked . | . . . . Crushed . | . . . . Highest Temperature 18 | . 18 . . Average Temperature 10 | . 10 . . Received Heat Transfer 249 | . 105 . 144 Siege Activations . | . . . . Martial Activations . | . . . . Shielding Activations . | . . . . Robots Disrupted . | . . . . Combat Hostiles . | . . . . Robots Corrupted . | . . . . Combat Hostiles . | . . . . Parts Fried . | . . . . Impact Corruptions . | . . . . Robots Melted . | . . . . Combat Hostiles . | . . . . Parts Melted . | . . . . Heat Transferred . | . . . . Parts Sabotaged . | . . . . Parts Stolen . | . . . . Parts Stripped . | . . . . Power Chain Reactions . | . . . . Alert | -11 -10 -10 -10 ------- Run | Yrd Mat Min Sub Maximum Alert Level . | . . . . Low Security (%) 100 | 100 100 100 . Level 1 . | . . . . Level 2 . | . . . . Level 3 . | . . . . Level 4 . | . . . . Level 5 . | . . . . High Security . | . . . . Max Security . | . . . . Peak Influence 80 | 5 80 27 . Initial 27 | . . 27 . Average 9 | . 34 3 . Influence Increases 110 | 10 100 . . Destroy 0b10 Robot/C 60 | . 60 . . Destroy 0b10 Robot/NC 10 | 10 . . . Destroy Leader 10 | . 10 . . Lose Combat Pursuer 30 | . 30 . . Influence Decreases 110 | 10 30 70 . Entered New Map 43 | . . 43 . Time Decay 67 | 10 30 27 . Squads Dispatched . | . . . . Investigation . | . . . . Extermination . | . . . . Reinforcement . | . . . . Assault . | . . . . Garrison . | . . . . Intercept . | . . . . Searches Triggered . | . . . . Construction Impeded . | . . . . Haulers Reinforced . | . . . . Active Scanning Responses . | . . . . Cargo Convoy Interrupts . | . . . . Stealth | -11 -10 -10 -10 --------- Run | Yrd Mat Min Sub Distress Signals 1 | . 1 . . Communications Jammed . | . . . . Distress Signals . | . . . . Times Spotted 12 | . 9 . 3 Peak Tracking Total 5 | . 5 . 3 Tactical Retreats 2 | . 2 . . Traps | -11 -10 -10 -10 ------- Run | Yrd Mat Min Sub Traps Triggered 1 | . . . 1 Indirectly . | . . . . Trap Hack Attempts . | . . . . Triggered . | . . . . Disarmed . | . . . . Reprogrammed . | . . . . Reused . | . . . . Traps Extracted . | . . . . Installed . | . . . . Triggered . | . . . . Machines | -11 -10 -10 -10 ---------- Run | Yrd Mat Min Sub Machines Disabled . | . . . . Max in Single Turn . | . . . . Machines Repaired . | . . . . Machines Dismantled . | . . . . Machines Sabotaged . | . . . . Overloaded Fab Kills . | . . . . Hacking | -11 -10 -10 -10 --------- Run | Yrd Mat Min Sub Machines Accessed . | . . . . Terminals . | . . . . Fabricators . | . . . . Repair Stations . | . . . . Recycling Units . | . . . . Scanalyzers . | . . . . Garrison Access . | . . . . Total Hacks . | . . . . Successful . | . . . . Failed . | . . . . Catastrophic . | . . . . Database Lockouts . | . . . . Manual . | . . . . Terminals . | . . . . Fabricators . | . . . . Repair Stations . | . . . . Recycling Units . | . . . . Scanalyzers . | . . . . Garrison Access . | . . . . Terminal Hacks . | . . . . Fabricator Hacks . | . . . . Repair Station Hacks . | . . . . Recycling Unit Hacks . | . . . . Scanalyzer . | . . . . Garrison Access Hacks . | . . . . Unauthorized Hacks . | . . . . Terminals . | . . . . Fabricators . | . . . . Repair Stations . | . . . . Recycling Units . | . . . . Scanalyzers . | . . . . Garrison Access . | . . . . Data Cores Recovered . | . . . . Used . | . . . . Hacking Detections . | . . . . Full Trace Events . | . . . . Feedback Events . | . . . . Feedback Blocked . | . . . . Robot Schematics Acquired . | . . . . Robots Built . | . . . . Authchips . | . . . . Time . | . . . . Total Robot Build Rating . | . . . . Part Schematics Acquired . | . . . . Parts Built . | . . . . Authchips . | . . . . Time . | . . . . Total Part Build Rating . | . . . . Parts Repaired . | . . . . Time . | . . . . Parts Recycled . | . . . . Recycled Matter . | . . . . Retrieved Matter . | . . . . Retrieved Components . | . . . . Parts Scanalyzed . | . . . . Part Schematics Acquired . | . . . . Parts Damaged . | . . . . Bothacking | -11 -10 -10 -10 ------------ Run | Yrd Mat Min Sub Used RIF Installer . | . . . . Robots Hacked . | . . . . Non-combat . | . . . . Combat . | . . . . Robot Hacks Applied . | . . . . Relay Couplers Released . | . . . . Fabnet Peak Effective % . | . . . . Robots Rewired . | . . . . Allies Hacked . | . . . . Hacks Repelled . | . . . . Allies | -11 -10 -10 -10 -------- Run | Yrd Mat Min Sub Total Allies . | . . . . Largest Group . | . . . . Highest-Rated Group . | . . . . Highest-Rated Ally . | . . . . Total Orders . | . . . . Ally Attacks . | . . . . Total Damage . | . . . . Kills . | . . . . Allies Corrupted . | . . . . Allies Melted . | . . . . Intel | -11 -10 -10 -10 ------- Run | Yrd Mat Min Sub Active Infowar (turns) 1101 | 23 136 304 638 Seismic 1101 | 23 136 304 638 Robot Analysis Total . | . . . . Derelict Logs Recovered . | . . . . Drone Launches . | . . . . Drone Recoveries . | . . . . Exploration | -11 -10 -10 -10 ------------- Run | Yrd Mat Min Sub Turns Passed 1249 | 161 136 304 648 Spaces Moved 747 | 87 62 190 408 Core 25 | 11 . . 14 Treads 629 | 76 62 190 301 Legs . | . . . . Wheels 93 | . . . 93 Hover . | . . . . Flight . | . . . . Fastest Speed 50 | 50 160 160 50 Average Speed 149 | 146 160 160 144 Slowest Speed 160 | 160 160 160 160 Overloaded Moves . | . . . . Propulsion Burnouts . | . . . . Robots Hopped . | . . . . Potential Cave-ins . | . . . . Cave-ins Triggered . | . . . . Exploration Rate (%) 14 | 5 14 27 12 Regions Visited 3 Branch Regions 2 Pre-discovered Areas . | . . . . Known Exits Taken . | . . . . Unknown Exits Taken 3 | 1 1 1 . Scrap Searched . | . . . . Spaces Dug . | . . . . Terrain Destroyed 1 | . . . 1 Melee . | . . . . Projectile 1 | . . . 1 AOE . | . . . . Terrain Rammed . | . . . . Walls Destroyed . | . . . . Machines Disabled . | . . . . Actions | -11 -10 -10 -10 --------- Run | Yrd Mat Min Sub Total 822 | 111 82 190 439 Wait 5 | . 5 . . Move 744 | 86 61 189 408 Hop . | . . . . Pick Up 14 | 11 3 . . Fast Attach 6 | 4 . . 2 Attach 6 | 3 . . 3 Detach 3 | . . . 3 Swap 5 | 1 . 1 3 Drop 9 | . 3 . 6 Fire 30 | 6 10 . 14 Melee . | . . . . Ram . | . . . . Kick . | . . . . Crush . | . . . . Escape Stasis . | . . . . Rewire . | . . . . Trap . | . . . . Miscellaneous . | . . . . Route ------- -11/Scrapyard -10/Materials -10/Mines -10/Subcaves History --------- Turn | Location | Event 8 | -11/Scrapyard | Discovered new exit (range 15) 162 | -11/Scrapyard | Entered Materials 274 | -10/Materials | Discovered new exit (range 7) 298 | -10/Materials | Entered Mines 303 | -10/Mines | Build established: Mutant 484 | -10/Mines | Discovered new exit (range 12) 602 | -10/Mines | Entered Subcaves 603 | -10/Subcaves | Approached by a straggling Scientist 605 | -10/Subcaves | Shifting Twisted Machinery released Battle Cannon 1094 | -10/Subcaves | Shifting Twisted Machinery released Sub. Monowheel 1244 | -10/Subcaves | Core integrity fell below 50% 1249 | -10/Subcaves | Core integrity fell below 20% 1250 | -10/Subcaves | Destroyed by 7A-100(R) with Subdweller Laser Last Messages --------------- BZ-ZV9(c): "I think it's somewhere southwest of here" Sub. Monowheel falls loose from the Twisted Machinery. 01110_ Dropped Lgt. Treads. BZ-ZV9(c): "I think it's somewhere southwest of here" 01115_ Acquired Sub. Monowheel. 01117_ Subatomizers dissect the Lgt. Treads. 01144_ Subatomizers dissect the Lgt. Treads, destroying it. BZ-ZV9(c): "I think it's somewhere southwest of here" 01193_ Subatomizers dissect the Lgt. Treads. 01208_ Assault Rifle destroyed. 01208_ Mining Laser destroyed. 01210_ Z0-9UT(R) knocked back. BZ-ZV9(c): "I think it's somewhere southwest of here" 01222_ Lgt. Assault Rifle destroyed. 01234_ 3B-J7A(R) knocked back. 01236_ Battle Cannon destroyed. 01238_ Dropped Lgt. Ion Engine. 01239_ Dropped Com. Wheel. 01245_ Dropped Sml. Storage Unit. 01247_ Subatomizers dissect the Com. Wheel. Map ----- +----------------------------------------------------+ | ??????????????????????????????????????????# #?? | | ??????????????????????????????????????????# #?? | | ??????????????????????????????????????????## ##?? | | ?????????????????????????????###???????????# ##?? | | ?????????????????????????????# ##????####### #?? | | ????????????????????????????## #????#" # #?? | | ???????????????????????????## ###### #?? | | ???????????????????????????# # # ##?? | | ??????????????????????????## ""### #??? | | ??????????????????????????# ## ### " #" #??? | | ??????????????????????????## # # ##" """ #??? | | ???????????????????????????# ## " " "#####??? | | ???????????????????????????# ## # # ##""##??????? | | ???????????????????????????#### ###### ???????? | | ?????????????????????????????### ### ###"""??????? | | ?????????????????????????????# ""#?#" ??????? | | ?????????????????????????????# "" #??????????? | | ?????????????????????????????# # #??????????? | | ?????????????????????????????#####=" #??????????? | | ???????????????????????##????????# #??????????? | | ??????????????????????## ##?###### ##??????????? | | ?????????????????????## ### #;; ##???????????? | | ?????????????????????# ## != ##???????????? | | ??????????????????#### = #???????????? | | ??????????????????# #???????????? | | ??????????????????# @ *= ##???????????? | | ??????????????????# RR ## ###????????????? | | ?????????????????# #######??????????????? | | ????????????????# %##????????????????????? | | ???????????????# ;#?????????????????????? | | ???????????????# R;##?????????????????????? | | ???????????????## % %%##??????????????????????? | | ????????????????# ????????????????????????? | | ???????????????# ## ????????????????????????? | | ?????????????? #?# ????????????????????????? | | ?????????????? #??## ????????????????????????? | | ?????????????? ????## ????????????????????????? | | ???????????????? ??????# ????????????????????????? | | ?????????????????????????????????????????????????? | | ?????????????????????????????????????????????????? | | ?????????????????????????????????????????????????? | | ?????????????????????????????????????????????????? | | ?????????????????????????????????????????????????? | | ?????????????????????????????????????????????????? | | ?????????????????????????????????????????????????? | | ?????????????????????????????????????????????????? | | ?????????????????????????????????????????????????? | | ?????????????????????????????????????????????????? | | ?????????????????????????????????????????????????? | | ?????????????????????????????????????????????????? | +----------------------------------------------------+ Best States ------------- Heat Dissipation 25 Energy Generation 10 Energy Capacity 250 Matter Stores 300 Matter Capacity 300 Sight Range 16 Terrain Scan Density 10 Evasion (%) 50 Recoil Reduction 2 Item Schematics ----------------- None Robot Schematics ------------------ None Fabricated ------------ Nothing Repaired ---------- Nothing Alien Tech Used ----------------- None Achievements -------------- None Challenges ------------ None Game ------ Seed ChromionCentriumMonowheel Manual? 0 Play Time 00:13:23 Cumulative 10.4 hours Start 2025.08.12 @ 19:52:36 End 2025.08.12 @ 20:04:31 Sessions 1 Manual Loads 0 Difficulty Rogue Special Mode None Game No. 24 Rogue 24 Adventurer 0 Explorer 0 Win Type - Total 0 Types 0/0/0/0/0/0/0/0/0/0 Lore% 12 Gallery% 12 Achievement% 11 Wizard Run 0 Options --------- Layout 0 ASCII 0 Keyboard 0 Movement Arrows Keybinds 0 Fullscreen 1 Font 20/SmallcapsGlow Map View 66x50 Zoom Use 0% Tactical HUD 1 Map Filters NONE Filters NONE Steam 1 RUN: 4d2fee94-9a1f-4df7-b3fa-6c88f5df4b5f